[Event "Titled Tuesday Blitz March 29 Early 2022"]
[White "Hua, Lefong"]
[Black "Costachi, Mihnea"]
[WhiteFideId "2602253"]
[BlackFideId "1217518"]
[WhiteElo "2580"]
[BlackElo "2464"]
[Result "1/2-1/2"]
[Round "05"]
[TimeControl "180+1"]
[Date "2022.03.29"]
[WhiteClock "0:00:15"]
[BlackClock "0:00:37"]

1. d4 {[%clk 0:03:00]}  Nf6 {[%clk 0:02:59]} 2. c4 {[%clk 0:03:01]}  e6 {[%clk 0:02:59]} 3. Nc3 {[%clk 0:03:01]}  Bb4 {[%clk 0:02:59]} 4. f3 {[%clk 0:03:01]}  d5 {[%clk 0:02:54]} 5. a3 {[%clk 0:03:01]}  Bxc3+ {[%clk 0:02:52]} 6. bxc3 {[%clk 0:03:02]}  c5 {[%clk 0:02:52]} 7. cxd5 {[%clk 0:03:02]}  Nxd5 {[%clk 0:02:53]} 8. dxc5 {[%clk 0:03:01]}  Qa5 {[%clk 0:02:51]} 9. e4 {[%clk 0:03:00]}  Nf6 {[%clk 0:02:42]} 10. Be3 {[%clk 0:02:59]}  O-O {[%clk 0:02:29]} 11. Qb3 {[%clk 0:02:56]}  Na6 {[%clk 0:02:25]} 12. Bb5 {[%clk 0:02:36]}  Bd7 {[%clk 0:02:23]} 13. Bxa6 {[%clk 0:02:20]}  bxa6 {[%clk 0:02:21]} 14. Ne2 {[%clk 0:02:19]}  Rab8 {[%clk 0:02:20]} 15. Qc2 {[%clk 0:02:19]}  Ba4 {[%clk 0:02:16]} 16. Qc1 {[%clk 0:02:17]}  Nd7 {[%clk 0:02:15]} 17. O-O {[%clk 0:02:09]}  Nxc5 {[%clk 0:02:14]} 18. Rb1 {[%clk 0:02:02]}  Nb3 {[%clk 0:02:12]} 19. Qe1 {[%clk 0:01:59]}  Rb7 {[%clk 0:02:06]} 20. Nd4 {[%clk 0:01:46]}  Rfb8 {[%clk 0:02:03]} 21. Nxb3 {[%clk 0:01:30]}  Bxb3 {[%clk 0:02:04]} 22. Qf2 {[%clk 0:01:23]}  Qxa3 {[%clk 0:01:59]} 23. Bxa7 {[%clk 0:01:20]}  Rc8 {[%clk 0:01:58]} 24. Bd4 {[%clk 0:01:16]}  f6 {[%clk 0:01:46]} 25. e5 {[%clk 0:01:13]}  f5 {[%clk 0:01:45]} 26. Ra1 {[%clk 0:01:02]}  Qe7 {[%clk 0:01:45]} 27. Rfb1 {[%clk 0:01:01]}  Bc4 {[%clk 0:01:44]} 28. Qc2 {[%clk 0:00:51]}  h6 {[%clk 0:01:41]} 29. Qa4 {[%clk 0:00:47]}  Rxb1+ {[%clk 0:01:39]} 30. Rxb1 {[%clk 0:00:46]}  Bb5 {[%clk 0:01:40]} 31. Qb4 {[%clk 0:00:46]}  Qc7 {[%clk 0:01:34]} 32. Qd6 {[%clk 0:00:43]}  Qc4 {[%clk 0:01:34]} 33. h4 {[%clk 0:00:38]}  Qd3 {[%clk 0:01:26]} 34. Ra1 {[%clk 0:00:35]}  Qc4 {[%clk 0:01:25]} 35. Kh2 {[%clk 0:00:34]}  Qc6 {[%clk 0:01:25]} 36. Qxc6 {[%clk 0:00:33]}  Rxc6 {[%clk 0:01:26]} 37. Kg3 {[%clk 0:00:32]}  g5 {[%clk 0:01:25]} 38. hxg5 {[%clk 0:00:32]}  hxg5 {[%clk 0:01:26]} 39. f4 {[%clk 0:00:33]}  g4 {[%clk 0:01:22]} 40. Kh4 {[%clk 0:00:32]}  Kg7 {[%clk 0:01:14]} 41. Kg5 {[%clk 0:00:30]}  g3 {[%clk 0:01:15]} 42. Kh4 {[%clk 0:00:29]}  Bc4 {[%clk 0:01:14]} 43. Kxg3 {[%clk 0:00:28]}  Bd5 {[%clk 0:01:15]} 44. Kf2 {[%clk 0:00:27]}  Kg6 {[%clk 0:01:14]} 45. Rb1 {[%clk 0:00:24]}  a5 {[%clk 0:01:12]} 46. Rb6 {[%clk 0:00:20]}  Rc4 {[%clk 0:01:09]} 47. Ra6 {[%clk 0:00:18]}  Ra4 {[%clk 0:01:09]} 48. g3 {[%clk 0:00:17]}  Ra2+ {[%clk 0:01:10]} 49. Ke3 {[%clk 0:00:18]}  a4 {[%clk 0:01:11]} 50. Ra7 {[%clk 0:00:16]}  Ra1 {[%clk 0:01:08]} 51. Kd3 {[%clk 0:00:17]}  a3 {[%clk 0:01:08]} 52. c4 {[%clk 0:00:17]}  Rd1+ {[%clk 0:00:59]} 53. Ke2 {[%clk 0:00:16]}  Rxd4 {[%clk 0:00:52]} 54. cxd5 {[%clk 0:00:16]}  Rxd5 {[%clk 0:00:53]} 55. Rxa3 {[%clk 0:00:16]}  Kh5 {[%clk 0:00:51]} 56. Kf3 {[%clk 0:00:16]}  Rb5 {[%clk 0:00:50]} 57. Ra6 {[%clk 0:00:15]}  Rb3+ {[%clk 0:00:49]} 58. Kf2 {[%clk 0:00:16]}  Kg4 {[%clk 0:00:50]} 59. Rxe6 {[%clk 0:00:15]}  Rf3+ {[%clk 0:00:46]} 60. Ke2 {[%clk 0:00:16]}  Kxg3 {[%clk 0:00:43]} 61. Rg6+ {[%clk 0:00:15]}  Kxf4 {[%clk 0:00:43]} 62. e6 {[%clk 0:00:15]}  Re3+ {[%clk 0:00:43]} 63. Kf2 {[%clk 0:00:16]}  Ra3 {[%clk 0:00:42]} 64. e7 {[%clk 0:00:16]}  Re3 {[%clk 0:00:39]} 65. Rg7 {[%clk 0:00:15]}  Re6 {[%clk 0:00:40]} 66. Rf7 {[%clk 0:00:14]}  Ke4 {[%clk 0:00:40]} 67. Ke2 {[%clk 0:00:14]}  f4 {[%clk 0:00:40]} 68. Kf2 {[%clk 0:00:15]}  Re5 {[%clk 0:00:40]} 69. Rg7 {[%clk 0:00:14]}  Kf5 {[%clk 0:00:37]} 70. Rf7+ {[%clk 0:00:14]}  Kg6 {[%clk 0:00:36]} 71. Rxf4 {[%clk 0:00:14]}  Rxe7 {[%clk 0:00:36]} 72. Kf3 {[%clk 0:00:15]}  Rf7 {[%clk 0:00:36]} 73. Rxf7 {[%clk 0:00:15]}  Kxf7 {[%clk 0:00:37]} 1/2-1/2


[Site "https://www.chess.com"]

[Event "Titled Tuesday Blitz March 29 Early 2022"]
[White "Kaminski, Victor"]
[Black "Chen, Qi b"]
[WhiteFideId "1131630"]
[BlackFideId "8614733"]
[WhiteElo "2181"]
[BlackElo "2432"]
[Result "0-1"]
[Round "05"]
[TimeControl "180+1"]
[Date "2022.03.30"]
[WhiteClock "0:00:05"]
[BlackClock "0:00:04"]

1. e4 {[%clk 0:03:00]}  c5 {[%clk 0:02:58]} 2. Nf3 {[%clk 0:03:00]}  Nc6 {[%clk 0:02:58]} 3. Bb5 {[%clk 0:02:59]}  g6 {[%clk 0:02:58]} 4. O-O {[%clk 0:02:58]}  Bg7 {[%clk 0:02:58]} 5. Re1 {[%clk 0:02:57]}  Nf6 {[%clk 0:02:58]} 6. e5 {[%clk 0:02:57]}  Nd5 {[%clk 0:02:58]} 7. Nc3 {[%clk 0:02:57]}  Nc7 {[%clk 0:02:58]} 8. Bxc6 {[%clk 0:02:57]}  dxc6 {[%clk 0:02:55]} 9. Ne4 {[%clk 0:02:58]}  b6 {[%clk 0:02:53]} 10. Nf6+ {[%clk 0:02:58]}  Kf8 {[%clk 0:02:53]} 11. Ne4 {[%clk 0:02:58]}  h6 {[%clk 0:02:42]} 12. d3 {[%clk 0:02:57]}  Be6 {[%clk 0:02:35]} 13. a4 {[%clk 0:02:56]}  a5 {[%clk 0:02:32]} 14. h3 {[%clk 0:02:53]}  Kg8 {[%clk 0:02:31]} 15. Bf4 {[%clk 0:02:52]}  Kh7 {[%clk 0:02:08]} 16. Qd2 {[%clk 0:02:48]}  Nd5 {[%clk 0:02:04]} 17. Bh2 {[%clk 0:02:38]}  Re8 {[%clk 0:02:04]} 18. b3 {[%clk 0:02:31]}  Qd7 {[%clk 0:02:04]} 19. Rad1 {[%clk 0:02:11]}  Rad8 {[%clk 0:02:03]} 20. d4 {[%clk 0:02:09]}  cxd4 {[%clk 0:01:24]} 21. Nxd4 {[%clk 0:02:09]}  Nc7 {[%clk 0:01:14]} 22. Nxe6 {[%clk 0:02:07]}  Qxd2 {[%clk 0:01:13]} 23. Rxd2 {[%clk 0:01:40]}  Nxe6 {[%clk 0:01:12]} 24. Red1 {[%clk 0:01:37]}  g5 {[%clk 0:00:59]} 25. Bg3 {[%clk 0:01:27]}  Kg6 {[%clk 0:00:57]} 26. f3 {[%clk 0:01:24]}  Kf5 {[%clk 0:00:44]} 27. Bf2 {[%clk 0:01:19]}  c5 {[%clk 0:00:41]} 28. g4+ {[%clk 0:01:08]}  Kg6 {[%clk 0:00:40]} 29. Bg3 {[%clk 0:00:56]}  Rxd2 {[%clk 0:00:34]} 30. Rxd2 {[%clk 0:00:55]}  Nf4 {[%clk 0:00:26]} 31. Bxf4 {[%clk 0:00:49]}  gxf4 {[%clk 0:00:26]} 32. Rd5 {[%clk 0:00:39]}  e6 {[%clk 0:00:17]} 33. Rd6 {[%clk 0:00:39]}  Rb8 {[%clk 0:00:17]} 34. Nd2 {[%clk 0:00:28]}  Bxe5 {[%clk 0:00:16]} 35. Rd7 {[%clk 0:00:29]}  b5 {[%clk 0:00:14]} 36. axb5 {[%clk 0:00:26]}  Rxb5 {[%clk 0:00:13]} 37. Nc4 {[%clk 0:00:27]}  Bd4+ {[%clk 0:00:13]} 38. Kf1 {[%clk 0:00:23]}  a4 {[%clk 0:00:11]} 39. Nd6 {[%clk 0:00:11]}  axb3 {[%clk 0:00:10]} 40. cxb3 {[%clk 0:00:09]}  Rxb3 {[%clk 0:00:10]} 41. Nxf7 {[%clk 0:00:09]}  Rxf3+ {[%clk 0:00:10]} 42. Kg2 {[%clk 0:00:08]}  Rg3+ {[%clk 0:00:09]} 43. Kh2 {[%clk 0:00:09]}  Re3 {[%clk 0:00:08]} 44. h4 {[%clk 0:00:07]}  f3 {[%clk 0:00:07]} 45. h5+ {[%clk 0:00:05]}  Kf6 {[%clk 0:00:07]} 46. Nh8 {[%clk 0:00:05]}  Re2+ {[%clk 0:00:06]} 47. Kg3 {[%clk 0:00:04]}  f2 {[%clk 0:00:06]} 48. Rf7+ {[%clk 0:00:04]}  Ke5 {[%clk 0:00:06]} 49. Ng6+ {[%clk 0:00:05]}  Kd6 {[%clk 0:00:05]} 50. Kg2 {[%clk 0:00:05]}  c4 {[%clk 0:00:04]} 51. g5 {[%clk 0:00:05]}  hxg5 {[%clk 0:00:03]} 52. h6 {[%clk 0:00:05]}  c3 {[%clk 0:00:04]} 53. h7 {[%clk 0:00:05]}  c2 {[%clk 0:00:04]} 54. Ne5 {[%clk 0:00:02]}  Bxe5 {[%clk 0:00:04]} 55. Rc7 {[%clk 0:00:02]}  Kxc7 {[%clk 0:00:04]} 56. h8=Q {[%clk 0:00:01]}  Bxh8 {[%clk 0:00:03]} 57. Kf3 {[%clk 0:00:01]}  c1=Q {[%clk 0:00:04]} 58. Kg4 {[%clk 0:00:02]}  Qf4+ {[%clk 0:00:03]} 59. Kh5 {[%clk 0:00:03]}  g4 {[%clk 0:00:03]} 60. Kg6 {[%clk 0:00:04]}  Qf6+ {[%clk 0:00:03]} 61. Kh7 {[%clk 0:00:05]}  Re1 {[%clk 0:00:03]} 62. Kg8 {[%clk 0:00:05]}  Qg7# {[%clk 0:00:04]} 0-1


[Site "https://www.chess.com"]

[Event "Titled Tuesday Blitz March 29 Early 2022"]
[White "Karavaeva, Olga"]
[Black "Estrada Nieto, Julian"]
[WhiteFideId "4124111"]
[BlackFideId "5101018"]
[WhiteElo "2105"]
[BlackElo "2246"]
[Result "1/2-1/2"]
[Round "05"]
[TimeControl "180+1"]
[Date "2022.03.30"]
[WhiteClock "0:00:20"]
[BlackClock "0:00:07"]

1. c4 {[%clk 0:03:00]}  e5 {[%clk 0:02:59]} 2. Nc3 {[%clk 0:03:00]}  Nf6 {[%clk 0:02:59]} 3. g3 {[%clk 0:03:01]}  d5 {[%clk 0:02:58]} 4. cxd5 {[%clk 0:03:00]}  Nxd5 {[%clk 0:02:59]} 5. Bg2 {[%clk 0:03:00]}  Nb6 {[%clk 0:02:59]} 6. Nf3 {[%clk 0:03:00]}  Nc6 {[%clk 0:03:00]} 7. O-O {[%clk 0:03:00]}  Be7 {[%clk 0:03:00]} 8. d3 {[%clk 0:03:00]}  O-O {[%clk 0:03:00]} 9. b3 {[%clk 0:03:01]}  Re8 {[%clk 0:02:57]} 10. Be3 {[%clk 0:03:00]}  Bf8 {[%clk 0:02:56]} 11. Rc1 {[%clk 0:03:00]}  Bg4 {[%clk 0:02:52]} 12. h3 {[%clk 0:02:59]}  Bh5 {[%clk 0:02:51]} 13. Ne4 {[%clk 0:02:59]}  Nd4 {[%clk 0:02:46]} 14. g4 {[%clk 0:02:52]}  Bg6 {[%clk 0:02:43]} 15. Nc5 {[%clk 0:02:51]}  Bxc5 {[%clk 0:02:37]} 16. Rxc5 {[%clk 0:02:52]}  Qd6 {[%clk 0:02:32]} 17. Rc3 {[%clk 0:02:40]}  Nd5 {[%clk 0:02:21]} 18. Rc4 {[%clk 0:02:29]}  b5 {[%clk 0:02:00]} 19. Bxd4 {[%clk 0:02:20]}  bxc4 {[%clk 0:01:52]} 20. dxc4 {[%clk 0:02:21]}  Nf4 {[%clk 0:01:47]} 21. c5 {[%clk 0:02:07]}  Qd5 {[%clk 0:01:36]} 22. Be3 {[%clk 0:01:58]}  Qxd1 {[%clk 0:01:33]} 23. Rxd1 {[%clk 0:01:57]}  Nxg2 {[%clk 0:01:26]} 24. Kxg2 {[%clk 0:01:58]}  Re7 {[%clk 0:01:19]} 25. b4 {[%clk 0:01:45]}  Rb8 {[%clk 0:01:09]} 26. b5 {[%clk 0:01:35]}  Be4 {[%clk 0:01:08]} 27. a4 {[%clk 0:01:31]}  f6 {[%clk 0:01:05]} 28. Kg3 {[%clk 0:01:27]}  Bc2 {[%clk 0:00:59]} 29. Ra1 {[%clk 0:01:24]}  Ra8 {[%clk 0:00:49]} 30. a5 {[%clk 0:01:21]}  Kf7 {[%clk 0:00:44]} 31. Nd2 {[%clk 0:01:08]}  Rb8 {[%clk 0:00:43]} 32. b6 {[%clk 0:01:04]}  cxb6 {[%clk 0:00:42]} 33. cxb6 {[%clk 0:01:04]}  axb6 {[%clk 0:00:41]} 34. Bxb6 {[%clk 0:01:05]}  Reb7 {[%clk 0:00:31]} 35. Nc4 {[%clk 0:01:05]}  Ke6 {[%clk 0:00:30]} 36. a6 {[%clk 0:00:47]}  Rxb6 {[%clk 0:00:29]} 37. a7 {[%clk 0:00:46]}  Rb3+ {[%clk 0:00:27]} 38. e3 {[%clk 0:00:46]}  Ra8 {[%clk 0:00:22]} 39. Ra6+ {[%clk 0:00:42]}  Ke7 {[%clk 0:00:19]} 40. Nb6 {[%clk 0:00:41]}  Rxb6 {[%clk 0:00:19]} 41. Rxb6 {[%clk 0:00:42]}  Rxa7 {[%clk 0:00:19]} 42. h4 {[%clk 0:00:42]}  h6 {[%clk 0:00:17]} 43. h5 {[%clk 0:00:42]}  Be4 {[%clk 0:00:17]} 44. Rb4 {[%clk 0:00:39]}  Bd5 {[%clk 0:00:16]} 45. Rb5 {[%clk 0:00:36]}  Bc6 {[%clk 0:00:15]} 46. Rb6 {[%clk 0:00:36]}  Bd7 {[%clk 0:00:15]} 47. Rb8 {[%clk 0:00:36]}  Ra4 {[%clk 0:00:15]} 48. f3 {[%clk 0:00:35]}  Ra3 {[%clk 0:00:14]} 49. Kf2 {[%clk 0:00:34]}  Ra2+ {[%clk 0:00:12]} 50. Kg3 {[%clk 0:00:33]}  Rc2 {[%clk 0:00:11]} 51. Rb3 {[%clk 0:00:33]}  Kd6 {[%clk 0:00:10]} 52. Rd3+ {[%clk 0:00:32]}  Ke7 {[%clk 0:00:10]} 53. Ra3 {[%clk 0:00:31]}  Bc6 {[%clk 0:00:10]} 54. Ra7+ {[%clk 0:00:30]}  Bd7 {[%clk 0:00:10]} 55. Ra3 {[%clk 0:00:30]}  Ke6 {[%clk 0:00:10]} 56. Ra6+ {[%clk 0:00:29]}  Bc6 {[%clk 0:00:09]} 57. Ra7 {[%clk 0:00:27]}  Bd7 {[%clk 0:00:07]} 58. Ra6+ {[%clk 0:00:26]}  Ke7 {[%clk 0:00:08]} 59. Ra7 {[%clk 0:00:26]}  Rd2 {[%clk 0:00:08]} 60. Ra3 {[%clk 0:00:25]}  Rd6 {[%clk 0:00:09]} 61. Ra7 {[%clk 0:00:23]}  f5 {[%clk 0:00:09]} 62. gxf5 {[%clk 0:00:22]}  Kf6 {[%clk 0:00:09]} 63. e4 {[%clk 0:00:22]}  Kg5 {[%clk 0:00:09]} 64. Ra8 {[%clk 0:00:19]}  Kxh5 {[%clk 0:00:09]} 65. Rg8 {[%clk 0:00:20]}  Kg5 {[%clk 0:00:08]} 66. Rxg7+ {[%clk 0:00:19]}  Kf6 {[%clk 0:00:07]} 67. Rg6+ {[%clk 0:00:19]}  Ke7 {[%clk 0:00:07]} 68. Rg7+ {[%clk 0:00:19]}  Kf6 {[%clk 0:00:07]} 69. Rg6+ {[%clk 0:00:20]}  Ke7 {[%clk 0:00:07]} 70. Rg7+ {[%clk 0:00:20]}  Kf6 {[%clk 0:00:07]} 1/2-1/2


[Site "https://www.chess.com"]

[Event "Titled Tuesday Blitz March 29 Early 2022"]
[White "Karolczuk, Iwo"]
[Black "Babazada, Khazar"]
[WhiteFideId "21816972"]
[BlackFideId "13413554"]
[WhiteElo "2243"]
[BlackElo "2418"]
[Result "0-1"]
[Round "05"]
[TimeControl "180+1"]
[Date "2022.03.29"]
[WhiteClock "0:00:08"]
[BlackClock "0:00:23"]

1. e4 {[%clk 0:02:57]}  g6 {[%clk 0:02:55]} 2. d4 {[%clk 0:02:56]}  Bg7 {[%clk 0:02:54]} 3. Nc3 {[%clk 0:02:56]}  c6 {[%clk 0:02:52]} 4. Nf3 {[%clk 0:02:52]}  d5 {[%clk 0:02:52]} 5. h3 {[%clk 0:02:51]}  b5 {[%clk 0:02:51]} 6. exd5 {[%clk 0:02:47]}  b4 {[%clk 0:02:51]} 7. Ne4 {[%clk 0:02:46]}  cxd5 {[%clk 0:02:49]} 8. Ng3 {[%clk 0:02:43]}  Nf6 {[%clk 0:02:48]} 9. Bd3 {[%clk 0:02:43]}  O-O {[%clk 0:02:47]} 10. O-O {[%clk 0:02:43]}  Nc6 {[%clk 0:02:45]} 11. Re1 {[%clk 0:02:43]}  e6 {[%clk 0:02:42]} 12. a3 {[%clk 0:02:31]}  Qb6 {[%clk 0:02:32]} 13. axb4 {[%clk 0:02:30]}  Nxd4 {[%clk 0:02:19]} 14. Nxd4 {[%clk 0:02:25]}  Qxd4 {[%clk 0:02:20]} 15. c3 {[%clk 0:02:23]}  Qb6 {[%clk 0:02:20]} 16. Be3 {[%clk 0:02:22]}  Qc7 {[%clk 0:02:20]} 17. Bc5 {[%clk 0:02:19]}  Re8 {[%clk 0:02:19]} 18. Qa4 {[%clk 0:02:15]}  e5 {[%clk 0:02:01]} 19. Bb5 {[%clk 0:02:12]}  Bd7 {[%clk 0:01:57]} 20. Bxd7 {[%clk 0:02:11]}  Nxd7 {[%clk 0:01:58]} 21. Bxa7 {[%clk 0:01:56]}  e4 {[%clk 0:01:50]} 22. Qa5 {[%clk 0:01:43]}  Qb7 {[%clk 0:01:44]} 23. Qa6 {[%clk 0:01:31]}  Qc7 {[%clk 0:01:20]} 24. Qa5 {[%clk 0:01:10]}  Qc4 {[%clk 0:01:04]} 25. Qa2 {[%clk 0:01:02]}  Qc8 {[%clk 0:00:48]} 26. Qxd5 {[%clk 0:01:00]}  Nf6 {[%clk 0:00:46]} 27. Qc5 {[%clk 0:00:59]}  Qd7 {[%clk 0:00:43]} 28. b5 {[%clk 0:00:55]}  Rec8 {[%clk 0:00:31]} 29. Qb6 {[%clk 0:00:44]}  Nd5 {[%clk 0:00:29]} 30. Qa6 {[%clk 0:00:37]}  e3 {[%clk 0:00:27]} 31. Nf1 {[%clk 0:00:25]}  exf2+ {[%clk 0:00:27]} 32. Kxf2 {[%clk 0:00:25]}  Bf8 {[%clk 0:00:24]} 33. Kg1 {[%clk 0:00:13]}  Rxa7 {[%clk 0:00:24]} 34. Qc6 {[%clk 0:00:08]}  Rxc6 {[%clk 0:00:23]} 35. bxc6 {[%clk 0:00:08]}  Qxc6 {[%clk 0:00:22]} 36. Rxa7 {[%clk 0:00:08]}  Bc5+ {[%clk 0:00:23]} 0-1


[Site "https://www.chess.com"]

[Event "Titled Tuesday Blitz March 29 Early 2022"]
[White "Kejzar, Petra"]
[Black "Kopylov, Alexander A."]
[WhiteFideId "14610213"]
[BlackFideId "4164857"]
[WhiteElo "2003"]
[BlackElo "2436"]
[Result "1-0"]
[Round "05"]
[TimeControl "180+1"]
[Date "2022.03.30"]
[WhiteClock "0:00:05"]
[BlackClock "0:00:09"]

1. e4 {[%clk 0:03:00]}  e5 {[%clk 0:02:56]} 2. Nf3 {[%clk 0:02:59]}  Nc6 {[%clk 0:02:56]} 3. Bb5 {[%clk 0:02:59]}  a6 {[%clk 0:02:55]} 4. Ba4 {[%clk 0:02:59]}  Nf6 {[%clk 0:02:53]} 5. O-O {[%clk 0:02:59]}  b5 {[%clk 0:02:52]} 6. Bb3 {[%clk 0:02:57]}  Be7 {[%clk 0:02:53]} 7. a4 {[%clk 0:02:48]}  Rb8 {[%clk 0:02:51]} 8. axb5 {[%clk 0:02:46]}  axb5 {[%clk 0:02:52]} 9. c3 {[%clk 0:02:45]}  d6 {[%clk 0:02:51]} 10. h4 {[%clk 0:02:45]}  O-O {[%clk 0:02:50]} 11. d3 {[%clk 0:02:38]}  Bg4 {[%clk 0:02:38]} 12. Re1 {[%clk 0:02:34]}  Nh5 {[%clk 0:02:36]} 13. Bg5 {[%clk 0:02:22]}  Bxg5 {[%clk 0:02:02]} 14. hxg5 {[%clk 0:02:23]}  Nf4 {[%clk 0:01:55]} 15. Na3 {[%clk 0:02:14]}  Ne7 {[%clk 0:01:45]} 16. Nc2 {[%clk 0:02:13]}  Neg6 {[%clk 0:01:44]} 17. Ne3 {[%clk 0:02:11]}  Bxf3 {[%clk 0:01:44]} 18. Qxf3 {[%clk 0:02:08]}  Qxg5 {[%clk 0:01:44]} 19. Nf5 {[%clk 0:02:02]}  Nh4 {[%clk 0:01:36]} 20. Nxh4 {[%clk 0:01:58]}  Qxh4 {[%clk 0:01:34]} 21. g3 {[%clk 0:01:51]}  Qg5 {[%clk 0:01:34]} 22. Ra7 {[%clk 0:01:41]}  c5 {[%clk 0:01:30]} 23. Rd7 {[%clk 0:01:25]}  Rb6 {[%clk 0:01:21]} 24. Ra1 {[%clk 0:01:21]}  Rc6 {[%clk 0:01:06]} 25. Rxf7 {[%clk 0:01:09]}  c4 {[%clk 0:00:58]} 26. Rxf8+ {[%clk 0:01:08]}  Kxf8 {[%clk 0:00:58]} 27. dxc4 {[%clk 0:01:04]}  bxc4 {[%clk 0:00:59]} 28. Ba4 {[%clk 0:00:51]}  Ra6 {[%clk 0:00:44]} 29. Kf1 {[%clk 0:00:51]}  d5 {[%clk 0:00:22]} 30. gxf4 {[%clk 0:00:44]}  exf4 {[%clk 0:00:20]} 31. exd5 {[%clk 0:00:43]}  Qe5 {[%clk 0:00:17]} 32. Qe2 {[%clk 0:00:39]}  Qb8 {[%clk 0:00:12]} 33. Qxc4 {[%clk 0:00:19]}  Rh6 {[%clk 0:00:09]} 34. Qe4 {[%clk 0:00:14]}  Kg8 {[%clk 0:00:08]} 35. b4 {[%clk 0:00:12]}  Qf8 {[%clk 0:00:08]} 36. Bb3 {[%clk 0:00:11]}  Kh8 {[%clk 0:00:08]} 37. d6 {[%clk 0:00:11]}  Rxd6 {[%clk 0:00:08]} 38. Ra8 {[%clk 0:00:07]}  Rd8 {[%clk 0:00:08]} 39. Rxd8 {[%clk 0:00:07]}  Qxd8 {[%clk 0:00:09]} 40. f3 {[%clk 0:00:06]}  Qa8 {[%clk 0:00:09]} 41. Kf2 {[%clk 0:00:06]}  Qa6 {[%clk 0:00:09]} 42. Qe8# {[%clk 0:00:05]} 1-0


[Site "https://www.chess.com"]

[Event "Titled Tuesday Blitz March 29 Early 2022"]
[White "Khumalo, Keith"]
[Black "Priasmoro, Novendra"]
[WhiteFideId "14319470"]
[BlackFideId "7105029"]
[WhiteElo "2572"]
[BlackElo "2767"]
[Result "1-0"]
[Round "05"]
[TimeControl "180+1"]
[Date "2022.03.30"]
[WhiteClock "0:02:43"]
[BlackClock "0:02:02"]

1. e4 {[%clk 0:03:00]}  Nc6 {[%clk 0:02:43]} 2. d4 {[%clk 0:02:59]}  d5 {[%clk 0:02:43]} 3. exd5 {[%clk 0:02:59]}  Qxd5 {[%clk 0:02:44]} 4. Ne2 {[%clk 0:02:49]}  Bg4 {[%clk 0:02:43]} 5. f3 {[%clk 0:02:49]}  Bf5 {[%clk 0:02:41]} 6. Nbc3 {[%clk 0:02:49]}  Qd7 {[%clk 0:02:41]} 7. d5 {[%clk 0:02:46]}  Ne5 {[%clk 0:02:34]} 8. Nd4 {[%clk 0:02:44]}  Bg6 {[%clk 0:02:29]} 9. Bf4 {[%clk 0:02:42]}  f6 {[%clk 0:02:02]} 10. Bxe5 {[%clk 0:02:42]}  fxe5 {[%clk 0:02:02]} 11. Bb5 {[%clk 0:02:43]} 1-0


[Site "https://www.chess.com"]

[Event "Titled Tuesday Blitz March 29 Early 2022"]
[White "Kosteniuk, Alexandra"]
[Black "Derjabin, Ilja"]
[WhiteFideId "4128125"]
[BlackFideId "14104768"]
[WhiteElo "2755"]
[BlackElo "2551"]
[Result "0-1"]
[Round "05"]
[TimeControl "180+1"]
[Date "2022.03.30"]
[WhiteClock "0:00:04"]
[BlackClock "0:00:10"]

1. e4 {[%clk 0:03:00]}  e6 {[%clk 0:02:59]} 2. d4 {[%clk 0:02:50]}  d5 {[%clk 0:03:00]} 3. Nc3 {[%clk 0:02:50]}  Nf6 {[%clk 0:02:56]} 4. Bg5 {[%clk 0:02:46]}  Be7 {[%clk 0:02:56]} 5. e5 {[%clk 0:02:46]}  Ne4 {[%clk 0:02:55]} 6. Nxe4 {[%clk 0:02:32]}  dxe4 {[%clk 0:02:55]} 7. Bxe7 {[%clk 0:02:29]}  Qxe7 {[%clk 0:02:56]} 8. Qd2 {[%clk 0:02:29]}  c5 {[%clk 0:02:54]} 9. f4 {[%clk 0:02:21]}  Nc6 {[%clk 0:02:41]} 10. d5 {[%clk 0:02:13]}  exd5 {[%clk 0:02:38]} 11. Qxd5 {[%clk 0:02:13]}  Nd4 {[%clk 0:02:14]} 12. Qc4 {[%clk 0:01:59]}  O-O {[%clk 0:02:04]} 13. Ne2 {[%clk 0:01:22]}  Be6 {[%clk 0:02:01]} 14. Qc3 {[%clk 0:01:22]}  Qh4+ {[%clk 0:01:32]} 15. g3 {[%clk 0:01:00]}  Qh5 {[%clk 0:01:32]} 16. Qxc5 {[%clk 0:00:41]}  Nf3+ {[%clk 0:01:15]} 17. Kf2 {[%clk 0:00:41]}  Rac8 {[%clk 0:01:05]} 18. Qe3 {[%clk 0:00:41]}  Nxh2 {[%clk 0:01:03]} 19. Qxe4 {[%clk 0:00:15]}  Rxc2 {[%clk 0:00:40]} 20. Kg2 {[%clk 0:00:09]}  Bh3+ {[%clk 0:00:36]} 21. Kg1 {[%clk 0:00:05]}  Bxf1 {[%clk 0:00:09]} 22. Rxh2 {[%clk 0:00:04]}  Qxh2+ {[%clk 0:00:07]} 23. Kxh2 {[%clk 0:00:04]}  Rxe2+ {[%clk 0:00:07]} 24. Qxe2 {[%clk 0:00:05]}  Bxe2 {[%clk 0:00:07]} 25. Rc1 {[%clk 0:00:06]}  Bf3 {[%clk 0:00:06]} 26. Rc7 {[%clk 0:00:06]}  Bc6 {[%clk 0:00:07]} 27. f5 {[%clk 0:00:06]}  Rd8 {[%clk 0:00:07]} 28. e6 {[%clk 0:00:06]}  fxe6 {[%clk 0:00:08]} 29. fxe6 {[%clk 0:00:07]}  Re8 {[%clk 0:00:08]} 30. e7 {[%clk 0:00:07]}  Kf7 {[%clk 0:00:08]} 31. b4 {[%clk 0:00:07]}  Rxe7 {[%clk 0:00:09]} 32. Rc8 {[%clk 0:00:07]}  Re8 {[%clk 0:00:09]} 33. Rc7+ {[%clk 0:00:07]}  Kf6 {[%clk 0:00:10]} 34. b5 {[%clk 0:00:07]}  Bd5 {[%clk 0:00:10]} 35. Rd7 {[%clk 0:00:07]}  Be6 {[%clk 0:00:10]} 36. Rxb7 {[%clk 0:00:07]}  Rc8 {[%clk 0:00:10]} 37. Rxa7 {[%clk 0:00:07]}  Rc2+ {[%clk 0:00:10]} 38. Kg1 {[%clk 0:00:07]}  Rxa2 {[%clk 0:00:11]} 39. Rc7 {[%clk 0:00:06]}  Rb2 {[%clk 0:00:11]} 40. Rc5 {[%clk 0:00:06]}  Ke7 {[%clk 0:00:10]} 41. Rg5 {[%clk 0:00:04]}  g6 {[%clk 0:00:10]} 42. Rc5 {[%clk 0:00:04]}  Bd7 {[%clk 0:00:10]} 0-1


[Site "https://www.chess.com"]